[Event "125-Jahre Werder Bremen 2024"]
[Site "Bremen"]
[Date "2024.03.10"]
[Round "9.6"]
[White "Pajeken, Jakob Leon"]
[Black "Krastev, Alexander"]
[Result "1/2-1/2"]
[ECO "B67"]
[WhiteElo "2424"]
[BlackElo "2457"]
[Annotator "ChessBase"]
[PlyCount "69"]
[EventDate "2024.02.26"]
[EventType "swiss"]
[EventCountry "GER"]
[SourceTitle "playchess.com"]
[Source "ChessBase"]
[SourceQuality "1"]
[TimeControl "40/6000+30:1800+30"]

1. e4 {[%emt 0:00:02]} c5 {[%emt 0:10:59]} 2. Nf3 {[%emt 0:00:05]} d6 {[%emt 0:00:04]} 3. d4 {[%emt 0:00:05]} cxd4 {[%emt 0:00:04]} 4. Nxd4 {[%emt 0:00:02]} Nf6 {[%emt 0:00:08]} 5. Nc3 {[%emt 0:00:01]} Nc6 {[%emt 0:00:06]} 6. Bg5 {[%emt 0:00:05]} e6 {[%emt 0:00:05]} 7. Qd2 {[%emt 0:00:04]} a6 {[%emt 0:00:06]} 8. O-O-O {[%emt 0:00:04]} Bd7 {[%emt 0:00:07]} 9. Nxc6 {[%emt 1:44:32]} Bxc6 {[%emt 0:00:45]} 10. f3 {[%emt 0:00:00]} Be7 {[%emt 0:02:16]} 11. Kb1 {[%emt 0:00:00]} h6 {[%emt 0:01:15]} 12. Be3 {[%emt 0:00:00]} d5 {[%emt 0:01:12]} 13. e5 {[%emt 0:00:00]} Nd7 {[%emt 0:01:42]} 14. f4 {[%emt 0:00:00]} h5 {[%emt 0:00:19]} 15. Bd3 {[%emt 0:00:00]} Qc7 {[%emt 0:00:55]} 16. Ne2 {[%emt 0:00:00]} O-O-O {[%emt 0:16:44]} 17. Nd4 {[%emt 0:00:00]} Kb8 {[%emt 0:47:47]} 18. f5 {[%emt 0:00:00]} Nxe5 {[%emt 0:00:16]} 19. fxe6 {[%emt 0:00:00]} f6 {[%emt 0:00:03]} 20. Bf4 {[%emt 0:00:00]} g5 {[%emt 0:01:32]} 21. Bg3 {[%emt 0:00:00]} h4 {[%emt 0:00:04]} 22. Bf2 {[%emt 0:00:00]} Ka8 {[%emt 0:09:24]} 23. Rhe1 {[%emt 0:00:00]} Bc5 {[%emt 0:04:05]} 24. Qc3 {[%emt 0:00:00]} Ba7 {[%emt 0:00:05]} 25. Nxc6 {[%emt 0:00:00]} Qxc6 {[%emt 0:02:15]} 26. Qxc6 {[%emt 0:00:00]} bxc6 {[%emt 0:00:09]} 27. Rf1 {[%emt 0:00:00]} Rh6 {[%emt 0:02:03]} 28. Bxa6 {[%emt 0:00:00]} Re8 {[%emt 0:00:33]} 29. Rde1 {[%emt 0:00:00]} Bxf2 {[%emt 0:04:54]} 30. Rxf2 {[%emt 0:00:00]} Ka7 {[%emt 0:00:10]} 31. Bd3 {[%emt 0:00:00]} Rxe6 {[%emt 0:00:05]} 32. Bf5 {[%emt 0:00:00]} Rd6 {[%emt 0:00:36]} 33. c3 {[%emt 0:00:00]} Rh8 {[%emt 0:01:25]} 34. Kc2 {[%emt 0:00:00]} c5 {[%emt 0:00:55]} 35. b3 {[%emt 0:00:00]} 1/2-1/2

[Event "125-Jahre Werder Bremen 2024"]
[Site "Bremen"]
[Date "2024.03.10"]
[Round "9.7"]
[White "Gloeckler, Christian"]
[Black "Hejazipour, Mitra"]
[Result "1/2-1/2"]
[ECO "A29"]
[WhiteElo "2356"]
[BlackElo "2356"]
[Annotator "TA"]
[PlyCount "41"]
[EventDate "2024.02.26"]
[EventType "swiss"]
[EventCountry "GER"]
[SourceTitle "playchess.com"]
[Source "ChessBase"]
[SourceQuality "1"]
[TimeControl "40/6000+30:1800+30"]

{[%evp 18,41,11,0,0,8,11,0,6,0,0,0,0,0,0,-15,17,15,48,58,62,64,76,56,66,26]} 1. c4 {[%emt 0:00:02]} e5 {[%emt 0:00:31]} 2. Nc3 {[%emt 0:00:11]} Nf6 {[%emt 0:00:15]} 3. g3 {[%emt 0:00:08]} d5 {[%emt 0:00:51]} 4. cxd5 {[%emt 0:00:09]} Nxd5 {[%emt 0:00:01]} 5. Bg2 {[%emt 0:00:13]} Nb6 {[%emt 0:00:39]} 6. Nf3 {[%emt 0:00:13]} Nc6 {[%emt 0:00:05]} 7. O-O {[%emt 0:00:11]} Be7 {[%emt 0:00:37][%cal Bf8e7,Be7f6,Bf6g5][%mdl 32]} 8. a3 {[%emt 0:00:23]} O-O {[%emt 0:02:12]} 9. d3 {[%emt 0:00:22]} Be6 {[%emt 0:06:48]} 10. Be3 {[%emt 0:03:29]} Nd5 {[%emt 0:05:15]} 11. Nxd5 {[%emt 0:00:32]} Bxd5 {[%emt 0:00:06]} 12. Qa4 {[%emt 0:01:14]} Bf6 {[%emt 0:02:40] Die Stellung ist ausgeglichen.} 13. Nd2 {[%emt 0:17:48]} Nd4 {[%emt 0:01:31]} 14. Bxd4 {[%emt 0:02:52] [#] Droht Bc3 und aus.} Bxg2 {[%emt 0:02:59]} 15. Kxg2 {[%emt 0:00:30]} exd4 {[%emt 0:00:02]} 16. Rac1 {[%emt 0:07:23]} Bg5 {[%emt 0:02:32]} 17. f4 {[%emt 0:09:25]} Bf6 {[%emt 0:06:06] Schwarz ist schwach auf den weissen Feldern} 18. Qb5 {[%emt 0:09:33]} Qe7 {[%emt 0:34:29]} 19. Ne4 {[%emt 0:08:39]} ({Natürlich nicht} 19. Qxb7 $6 Qxe2+ 20. Rf2 Qxd3 $15) 19... c6 {[%emt 0:00:13]} 20. Qf5 {[%emt 0:03:31] Weiß steht aktiver.} Rad8 {[%emt 0:01:36]} 21. Nxf6+ {[%emt 0:08:18] Gewichteter Fehlerwert: Weiß=0.05 (makellos) /Schwarz=0.08 (makellos) .  Ungenau:       	Weiß=1     	Schwarz=2     OK:         	Weiß=3     	Schwarz=4     Bester:       	Weiß=1     	---} 1/2-1/2

[Event "125-Jahre Werder Bremen 2024"]
[Site "Bremen"]
[Date "2024.03.10"]
[Round "9.8"]
[White "Meins, Gerlef"]
[Black "Kopylov, Michael"]
[Result "1/2-1/2"]
[ECO "E18"]
[WhiteElo "2390"]
[BlackElo "2352"]
[Annotator "TA"]
[PlyCount "40"]
[EventDate "2024.02.26"]
[EventType "swiss"]
[EventCountry "GER"]
[SourceTitle "playchess.com"]
[Source "ChessBase"]
[SourceQuality "1"]
[TimeControl "40/6000+30:1800+30"]

{[%evp 21,40,22,29,20,17,18,22,20,15,10,5,0,16,0,11,0,30,-11,-11,-23,-20]} 1. d4 {[%emt 0:00:05]} Nf6 {[%emt 0:00:46]} 2. c4 {[%emt 0:00:08]} e6 {[%emt 0:00:35]} 3. Nf3 {[%emt 0:01:18]} b6 {[%emt 0:00:29]} 4. g3 {[%emt 0:00:37]} Bb7 {[%emt 0:00:12]} 5. Bg2 {[%emt 0:00:09]} Be7 {[%emt 0:00:24][%cal Bf8e7,Be7f6,Bf6g7][%mdl 32]} 6. O-O {[%emt 0:00:10]} O-O {[%emt 0:00:40]} 7. Nc3 {[%emt 0:01:14]} Ne4 {[%emt 0:00:09]} 8. Bd2 {[%emt 0:00:40]} Bf6 {[%emt 0:01:35]} 9. Rc1 {[%emt 0:07:17]} d6 {[%emt 0:00:19]} 10. Qc2 {[%emt 0:06:23]} Nxd2 {[%emt 0:02:16]} 11. Qxd2 {[%emt 0:00:09]} Nd7 {[%emt 0:00:21]} 12. Rfd1 {[%emt 0:01:57]} g6 {[%emt 0:05:50]} 13. e3 {[%emt 0:05:38]} Bg7 {[%emt 0:02:16]} 14. Qe2 {[%emt 0:05:53] Die Stellung ist ausgeglichen.} Qe7 {[%emt 0:05:19]} 15. b3 {[%emt 0:09:48]} Nf6 {[%emt 0:08:54]} 16. Ne1 {[%emt 0:15:07]} Bxg2 {[%emt 0:05:07]} 17. Nxg2 {[%emt 0:01:32]} c6 {[%emt 0:01:52]} 18. e4 {[%emt 0:06:23]} e5 {[%emt 0:03:23]} 19. dxe5 {[%emt 0:06:26]} dxe5 {[%emt 0:00:16]} 20. Ne3 {[%emt 0:03:08]} Bh6 {[%emt 0:02:54] Hier war wenig los.   Gewichteter Fehlerwert: Weiß=0.12 (sehr präzise) /Schwarz=0.07 (makellos) .  Ungenau:       	Weiß=1     	Schwarz=1     OK:         	Weiß=1     	Schwarz=2} 1/2-1/2

[Event "125-Jahre Werder Bremen 2024"]
[Site "Bremen"]
[Date "2024.03.10"]
[Round "9.9"]
[White "Reuker, Jari"]
[Black "Knaak, Rainer"]
[Result "0-1"]
[ECO "D30"]
[WhiteElo "2383"]
[BlackElo "2450"]
[Annotator "RC"]
[PlyCount "114"]
[EventDate "2024.02.26"]
[EventType "swiss"]
[EventCountry "GER"]
[SourceTitle "playchess.com"]
[Source "ChessBase"]
[SourceQuality "1"]
[TimeControl "40/6000+30:1800+30"]

1. d4 {[%emt 0:00:06]} d5 {[%emt 0:00:16]} 2. c4 {[%emt 0:00:07]} e6 {[%emt 0:00:06]} 3. Nf3 {[%emt 0:00:09]} c6 {[%emt 0:01:04]} 4. g3 {[%emt 0:00:08]} dxc4 {[%emt 0:00:34]} 5. Bg2 {[%emt 0:00:08]} b5 {[%emt 0:00:33]} 6. O-O {[%emt 0:00:08]} Nd7 {[%emt 0:02:58]} 7. a4 {[%emt 0:15:17]} Bb7 {[%emt 0:00:37]} 8. b3 {[%emt 0:00:22]} cxb3 {[%emt 0:01:24]} 9. Nbd2 {[%emt 0:06:21]} Ngf6 {[%emt 0:25:03]} 10. Nxb3 {[%emt 0:07:00]} a5 {[%emt 0:03:15]} 11. Ne5 {[%emt 0:07:14]} Nxe5 {[%emt 0:40:07]} 12. dxe5 {[%emt 0:21:44]} Nd5 {[%emt 0:00:10]} 13. Bxd5 {[%emt 0:12:05]} Qxd5 {[%emt 0:06:33]} 14. Qxd5 {[%emt 0:00:31]} cxd5 {[%emt 0:00:37]} 15. axb5 {[%emt 0:00:18]} a4 {[%emt 0:00:04]} 16. Nd4 {[%emt 0:01:38]} Bc5 {[%emt 0:01:33]} 17. e3 {[%emt 0:05:46]} Kd7 {[%emt 0:00:15]} 18. Ba3 {[%emt 0:00:21]} Rhc8 {[%emt 0:00:49]} 19. Bxc5 {[%emt 0:05:45]} Rxc5 {[%emt 0:00:05]} 20. Rfc1 {[%emt 0:06:18]} Rc4 {[%emt 0:08:00]} 21. Kf1 {[%emt 0:00:30]} Rac8 {[%emt 0:03:35]} 22. Rcb1 {[%emt 0:01:25]} Kc7 {[%emt 0:01:12]} 23. b6+ {[%emt 0:03:54]} Kb8 {[%emt 0:00:13]} 24. Nb5 {[%emt 0:02:04]} Ba6 {[%emt 0:01:18]} 25. Nd6 {[%emt 0:01:03]} Rc1+ {[%emt 0:04:12]} 26. Kg2 {[%emt 0:00:04]} Rxb1 {[%emt 0:00:05]} 27. Rxb1 {[%emt 0:00:03]} Rc6 {[%emt 0:01:43]} 28. Nxf7 {[%emt 0:08:44]} Bd3 {[%emt 0:00:50]} 29. Rb2 {[%emt 0:03:22]} a3 {[%emt 0:02:24]} 30. Rb3 {[%emt 0:00:11]} a2 {[%emt 0:00:42]} 31. Ra3 {[%emt 0:00:03]} Bb1 {[%emt 0:02:26]} 32. b7 {[%emt 0:00:10]} Rc3 {[%emt 0:00:34]} 33. Ra4 {[%emt 0:00:38]} Kxb7 {[%emt 0:00:07]} 34. Nd8+ {[%emt 0:00:05]} Kb6 {[%emt 0:00:26]} 35. Nxe6 {[%emt 0:00:07]} Kb5 {[%emt 0:00:20]} 36. Ra7 {[%emt 0:01:21]} Kb4 {[%emt 0:00:15]} 37. Rb7+ {[%emt 0:01:40]} Ka3 {[%emt 0:00:48]} 38. Nd4 {[%emt 0:01:38]} a1=Q {[%emt 0:00:45]} 39. Ra7+ {[%emt 0:00:30]} Kb2 {[%emt 0:00:07]} 40. Rxa1 {[%emt 0:00:07]} Kxa1 {[%emt 0:00:05]} 41. e6 {[%emt 0:04:25]} Rc8 {[%emt 0:05:32]} 42. g4 {[%emt 0:04:48]} Kb2 {[%emt 0:00:59]} 43. f4 {[%emt 0:11:28]} Kc3 {[%emt 0:13:10]} 44. f5 {[%emt 0:02:22]} Kc4 {[%emt 0:00:58]} 45. Kg3 {[%emt 0:00:22]} Kc5 {[%emt 0:00:09]} 46. Kf4 {[%emt 0:00:04]} Kd6 {[%emt 0:00:39]} 47. Nb5+ {[%emt 0:00:08]} Ke7 {[%emt 0:00:09]} 48. Ke5 {[%emt 0:04:27]} Rc5 {[%emt 0:00:43]} 49. Nd4 {[%emt 0:00:25]} Rc3 {[%emt 0:00:49]} 50. Kf4 {[%emt 0:00:39]} g6 {[%emt 0:02:41]} 51. Nb5 {[%emt 0:05:05]} Rc4+ {[%emt 0:01:37]} 52. Kg5 {[%emt 0:00:15]} gxf5 {[%emt 0:01:19]} 53. gxf5 {[%emt 0:00:05]} Rc8 {[%emt 0:00:27]} 54. Nd4 {[%emt 0:01:49]} Rg8+ {[%emt 0:00:06]} 55. Kh6 {[%emt 0:00:36]} Kf6 {[%emt 0:00:07]} 56. Kxh7 {[%emt 0:00:11]} Rg4 {[%emt 0:01:01]} 57. h3 {[%emt 0:00:54]} Rxd4 {[%emt 0:00:34]} 0-1

[Event "125-Jahre Werder Bremen 2024"]
[Site "Bremen"]
[Date "2024.03.10"]
[Round "9.10"]
[White "Breutigam, Martin"]
[Black "Wiegmann, Sascha"]
[Result "1/2-1/2"]
[ECO "D05"]
[WhiteElo "2359"]
[BlackElo "2297"]
[Annotator "TA"]
[PlyCount "116"]
[EventDate "2024.02.26"]
[EventType "swiss"]
[EventCountry "GER"]
[SourceTitle "playchess.com"]
[Source "ChessBase"]
[SourceQuality "1"]
[TimeControl "40/6000+30:1800+30"]

{[%evp 18,116,10,12,17,17,4,0,12,-11,-16,-33,-18,-25,28,10,22,24,0,8,0,10,114,91,88,79,101,45,53,33,22,26,14,0,25,25,29,18,26,0,0,0,0,0,0,0,0,0,0,0,0,-33,0,0,0,0,0,0,0,0,13,13,13,13,13,13,13,13,13,13,13,13,13,0,0,0,0,0,0,0,0,0,12,12,12,12,12,12,12,12,12,10,10,10,10,10,10,10,10,0,10]} 1. d4 {[%emt 0:00:05]} d5 {[%emt 0:00:01]} 2. Nf3 {[%emt 0:00:11]} Nf6 {[%emt 0:00:02]} 3. e3 {[%emt 0:00:13]} e6 {[%emt 0:00:20]} 4. Bd3 {[%emt 0:00:32]} c5 {[%emt 0:00:56]} 5. c3 {[%emt 0:00:16]} Nc6 {[%emt 0:01:02]} 6. Nbd2 {[%emt 0:00:16]} Bd6 {[%emt 0:02:55]} 7. O-O {[%emt 0:00:30]} O-O {[%emt 0:01:09]} 8. dxc5 {[%emt 0:00:14]} Bxc5 {[%emt 0:00:02]} 9. b4 {[%emt 0:00:10]} Bd6 {[%emt 0:01:52]} 10. Bb2 {[%emt 0:00:39]} Ne5 {[%emt 0:10:11]} 11. Nxe5 {[%emt 0:12:11]} Bxe5 {[%emt 0:00:02]} 12. f4 {[%emt 0:00:06]} Bd6 {[%emt 0:05:22]} 13. e4 {[%emt 0:05:35]} dxe4 {[%emt 0:02:11]} 14. Nxe4 {[%emt 0:00:11]} Nxe4 {[%emt 0:00:03]} 15. Bxe4 {[%emt 0:00:06]} Be7 {[%emt 0:00:45]} (15... Qc7 $142) 16. Qc2 {[%emt 0:06:20]} h6 {[%emt 0:08:15]} 17. Kh1 {[%emt 0:01:19]} Bf6 {[%emt 0:16:04]} 18. c4 {[%emt 0:01:59]} Bxb2 {[%emt 0:23:22]} 19. Qxb2 {[%emt 0:00:11]} f5 {[%emt 0:00:38]} (19... Qc7 $11) 20. Bf3 $16 {[%emt 0:23:06] White has more active pieces.} Qc7 {[%emt 0:02:46][%csl LRc4,LRf4]} 21. Rac1 {[%emt 0:00:45]} Rb8 {[%emt 0:05:32][%cal Ba8b8,Bb8b2,Bb2d2][%mdl 32]} 22. Qd4 {[%emt 0:06:15]} ({White should play} 22. c5 $16) 22... b6 $14 {[%emt 0:02:47]} 23. c5 {[%emt 0:02:14]} Rd8 {[%emt 0:07:08][%cal Bf8d8,Bd8d3,Bd3a3,Ba3c3][%mdl 32] Wards off c6} 24. Qe3 {[%emt 0:01:44]} bxc5 {[%emt 0:00:52]} 25. bxc5 {[%emt 0:01:46]} Rb2 {[%emt 0:01:13]} (25... Rb4 $5) 26. a3 {[%emt 0:01:20]} Kh7 {[%emt 0:01:30]} 27. h3 {[%emt 0:06:48]} Rbd2 $1 {[%emt 0:04:14]} 28. c6 {[%emt 0:11:17]} R8d3 {[%emt 0:03:03] Prevents Rc3.} 29. Qe5 {[%emt 0:01:11]} Qxe5 {[%emt 0:00:02]} 30. fxe5 {[%emt 0:00:04]} Rxa3 {[%emt 0:00:14]} 31. Rfd1 {[%emt 0:01:12]} Rxd1+ {[%emt 0:03:04]} 32. Rxd1 $11 {[%emt 0:00:47][%mdl 4096] Endgame. KRB-KRB} Rc3 {[%emt 0:00:24]} 33. Rd8 {[%emt 0:03:40] Repels a5} Ba6 {[%emt 0:00:01]} 34. Rd7 {[%emt 0:01:32]} Bb5 {[%emt 0:04:56]} 35. Rxa7 {[%emt 0:01:05] The position is equal.} Bxc6 {[%emt 0:03:44]} 36. Rc7 $1 {[%emt 0:00:51]} Rxf3 $1 {[%emt 0:00:01]} 37. gxf3 {[%emt 0:00:15]} Bxf3+ {[%emt 0:00:02] KR-KB} 38. Kg1 {[%emt 0:00:53]} f4 {[%emt 0:01:05]} 39. Rf7 {[%emt 0:00:19]} Be4 {[%emt 0:00:01]} 40. Rxf4 {[%emt 0:00:09]} Bf5 {[%emt 0:00:00]} 41. Kh2 {[%emt 0:33:35]} g5 {[%emt 0:07:36]} 42. Rb4 {[%emt 0:00:00]} Kg6 {[%emt 0:00:53]} 43. Kg3 {[%emt 0:00:00]} h5 {[%emt 0:05:24]} 44. h4 {[%emt 0:00:00] [#] Rb8 is the strong threat.} Bg4 {[%emt 0:00:30]} 45. Rb8 {[%emt 0:00:00] aiming for Rf8.} gxh4+ {[%emt 0:02:07]} 46. Kxh4 {[%emt 0:00:00] Rf8 would now be deadly.} Kf5 {[%emt 0:00:16]} 47. Rb5 {[%emt 0:00:00]} Kf4 {[%emt 0:03:20]} 48. Ra5 {[%emt 0:00:00]} Bf3 {[%emt 0:01:12]} 49. Kh3 {[%emt 0:00:00]} Kf5 {[%emt 0:01:54]} ({Inferior is} 49... Bd5 50. Rxd5 Kf5 51. Rb5 Kg5 52. Kg3 h4+ 53. Kh3 Kf4 54. Kxh4) 50. Kg3 {[%emt 0:00:00]} Bd5 {[%emt 0:00:37]} 51. Ra7 {[%emt 0:00:00]} Kxe5 {[%emt 0:01:19]} 52. Rh7 {[%emt 0:00:00]} Kd4 {[%emt 0:01:43]} 53. Rxh5 {[%emt 0:00:00]} e5 {[%emt 0:01:14]} 54. Kf2 {[%emt 0:00:00]} e4 {[%emt 0:02:15]} 55. Rh3 {[%emt 0:00:00]} Bc4 {[%emt 0:00:23]} 56. Ra3 {[%emt 0:00:00]} Bb5 {[%emt 0:01:13]} 57. Rb3 {[%emt 0:00:00]} Bc4 {[%emt 0:00:01]} 58. Ra3 {[%emt 0:00:00]} Bb5 {[%emt 0:00:02] Weighted Error Value: White=0.05 (flawless) /Black=0.08 (flawless) .  Mistake:       	White=1     	Black=2      Inaccurate:     	White=2     	Black=1      OK:         	White=18    	Black=27     Best:        	White=2     	Black=6      Strong:       	White=1     	Black=2} 1/2-1/2

[Event "125-Jahre Werder Bremen 2024"]
[Site "Bremen"]
[Date "2024.03.10"]
[Round "9.11"]
[White "Wachinger, Nikolas"]
[Black "Guichard, Pauline"]
[Result "1-0"]
[ECO "A29"]
[WhiteElo "2442"]
[BlackElo "2385"]
[Annotator "ChessBase"]
[PlyCount "69"]
[EventDate "2024.02.26"]
[EventType "swiss"]
[EventCountry "GER"]
[SourceTitle "playchess.com"]
[Source "ChessBase"]
[SourceQuality "1"]
[TimeControl "40/6000+30:1800+30"]

1. c4 {[%emt 0:00:49]} Nf6 {[%emt 0:00:11]} 2. Nc3 {[%emt 0:00:21]} e5 {[%emt 0:00:12]} 3. Nf3 {[%emt 0:00:16]} Nc6 {[%emt 0:00:15]} 4. g3 {[%emt 0:00:08]} d5 {[%emt 0:00:10]} 5. cxd5 {[%emt 0:00:15]} Nxd5 {[%emt 0:00:06]} 6. Bg2 {[%emt 0:00:07]} Nb6 {[%emt 0:00:13]} 7. O-O {[%emt 0:01:00]} Be7 {[%emt 0:00:30]} 8. b3 {[%emt 0:00:12]} O-O {[%emt 0:01:06]} 9. Bb2 {[%emt 0:00:07]} Re8 {[%emt 0:12:15]} 10. Rc1 {[%emt 0:00:57]} Bf8 {[%emt 0:00:12]} 11. Ne4 {[%emt 0:13:30]} Nd4 {[%emt 0:04:01]} 12. Nxd4 {[%emt 0:11:04]} exd4 {[%emt 0:00:08]} 13. e3 {[%emt 0:01:06]} Bf5 {[%emt 0:38:15]} 14. Nc5 {[%emt 0:01:36]} Bxc5 {[%emt 0:00:32]} 15. Rxc5 {[%emt 0:00:06]} Bd3 {[%emt 0:00:15]} 16. Re1 {[%emt 0:03:55]} dxe3 {[%emt 0:01:34]} 17. dxe3 {[%emt 0:06:30]} c6 {[%emt 0:00:17]} 18. Qg4 {[%emt 0:18:52]} Bg6 {[%emt 0:00:53]} 19. h4 {[%emt 0:03:23]} Qd6 {[%emt 0:12:33]} 20. Rec1 {[%emt 0:05:05]} Nd7 {[%emt 0:02:04]} 21. Ra5 {[%emt 0:05:55]} Nf6 {[%emt 0:00:20]} 22. Qd4 {[%emt 0:01:25]} Qxd4 {[%emt 0:01:54]} 23. Bxd4 {[%emt 0:00:53]} a6 {[%emt 0:00:05]} 24. g4 {[%emt 0:07:10]} Be4 {[%emt 0:02:34]} 25. f3 {[%emt 0:02:24]} Bd5 {[%emt 0:00:14]} 26. e4 {[%emt 0:03:08]} Be6 {[%emt 0:00:06]} 27. Kf2 {[%emt 0:01:24]} Nd7 {[%emt 0:04:44]} 28. b4 {[%emt 0:04:19]} f6 {[%emt 0:07:08]} 29. g5 {[%emt 0:02:29]} Rad8 {[%emt 0:01:27]} 30. Bf1 {[%emt 0:01:20]} Nf8 {[%emt 0:02:22]} 31. Bc3 {[%emt 0:01:51]} Nd7 {[%emt 0:01:58]} 32. Be2 {[%emt 0:03:40]} Bf7 {[%emt 0:02:38]} 33. Rg1 {[%emt 0:01:03]} Kh8 {[%emt 0:02:21]} 34. gxf6 {[%emt 0:03:17]} gxf6 {[%emt 0:00:19]} 35. Rf5 {[%emt 0:00:23]} 1-0